bitfinex/quotes_SOLUSD_20251119
["timestamp","ask_amount","ask_price","bid_price","bid_amount"]
[1763593403807,18.80096,135.92,135.87,12.47332009]
[1763593404410,30.58428009,135.92,135.87,12.47332009]
[1763593404926,0.68,135.91,135.88,1.76]
[1763593405288,18.12096,135.92,135.89,1.76]
[1763593405586,18.12096,135.92,135.89,13.54332009]
[1763593405790,18.12096,135.94,135.9,12.47332009]
[1763593405974,11.78332009,135.92,135.86,0.69]
[1763593406180,11.78332009,135.88,135.86,1.76]
[1763593406398,11.78332009,135.87,135.82,12.47332009]
[1763593406700,11.78332009,135.85,135.8,11.78332009]
[1763593406902,18.12096,135.88,135.81,13.54332009]
[1763593406903,11.78332009,135.86,135.81,13.54332009]
[1763593407077,12.50332009,135.87,135.81,14.23332009]
[1763593407278,18.12096,135.88,135.83,11.78332009]
[1763593407482,11.78332009,135.91,135.86,11.78332009]
[1763593407785,11.78332009,135.88,135.87,1.76]
[1763593407985,18.84096,135.9,135.87,1.76]
[1763593408208,11.78332009,135.88,135.87,1.76]
[1763593408521,11.78332009,135.88,135.79,0.89]
[1763593408522,18.12096,135.84,135.79,0.89]
[1763593408677,11.78332009,135.83,135.8,1.76]
[1763593408883,18.12096,135.84,135.81,12.47332009]
[1763593409187,0.72,135.87,135.81,12.47332009]
[1763593409385,12.50332009,135.87,135.81,12.47332009]
[1763593409608,11.78332009,135.86,135.81,12.47332009]
[1763593409814,11.78332009,135.85,135.81,0.69]
[1763593410022,11.78332009,135.85,135.8,11.78332009]
[1763593410023,11.78332009,135.85,135.82,1.76]
[1763593410194,12.50332009,135.85,135.82,1.76]
[1763593410699,11.78332009,135.86,135.82,1.76]
[1763593410905,30.62428009,135.88,135.83,11.78332009]
[1763593411423,0.72,135.87,135.83,11.78332009]
[1763593411713,12.50332009,135.87,135.82,14.23332009]
[1763593413412,12.50332009,135.87,135.82,2.45]
[1763593414417,11.78332009,135.86,135.82,2.45]
[1763593414718,11.78332009,135.85,135.83,1.76]
[1763593415015,29.90428009,135.85,135.8,62.79]
[1763593415213,18.12096,135.85,135.81,1.76]
[1763593415419,18.12096,135.85,135.81,14.23332009]
[1763593415711,18.12096,135.85,135.81,13.54332009]
[1763593415884,18.12096,135.85,135.82,0.69]
[1763593416289,22.29214778,135.89,135.83,11.78332009]
[1763593416488,12.50332009,135.89,135.84,1.76]
[1763593416925,18.84096,135.88,135.84,2.45]
[1763593417292,18.12096,135.87,135.85,0.69]
[1763593417696,18.12096,135.87,135.81,62.79]
[1763593417900,11.78332009,135.88,135.83,11.78332009]
[1763593418093,29.90428009,135.89,135.84,11.78332009]
[1763593418294,30.62428009,135.89,135.85,1.76]
[1763593418495,0.72,135.88,135.85,1.76]
[1763593419119,18.12096,135.89,135.86,0.69]
[1763593419420,0.72,135.88,135.87,1.76]
[1763593419626,11.78332009,135.89,135.87,1.76]
[1763593419800,11.78332009,135.9,135.87,1.76]
[1763593419996,12.50332009,135.94,135.89,11.78332009]
[1763593420204,0.72,135.94,135.9,1.76]
[1763593420426,18.84096,135.94,135.9,1.76]
[1763593421100,11.78332009,135.92,135.9,1.76]
[1763593421500,18.12096,135.91,135.9,1.76]
[1763593422631,30.62428009,135.91,135.87,0.69]
[1763593422838,0.72,135.93,135.88,2.45]
[1763593423145,18.12096,135.92,135.89,11.78332009]
[1763593423348,18.12096,135.92,135.89,12.47332009]
[1763593423638,22.29214778,135.96,135.9,12.47332009]
[1763593423839,22.29214778,135.96,135.91,1.76]
[1763593424047,18.12096,135.95,135.91,14.23332009]
[1763593424258,11.78332009,135.97,135.92,12.47332009]
[1763593424746,12.50332009,135.97,135.92,12.47332009]
[1763593425126,18.12096,135.96,135.92,12.47332009]
[1763593425647,18.84096,135.97,135.92,0.69]
[1763593425854,18.84096,135.97,135.92,12.47332009]
[1763593426152,30.62428009,135.97,135.92,12.47332009]
[1763593427028,30.62428009,135.97,135.93,0.69]
[1763593427253,30.62428009,135.97,135.94,1.76]
[1763593427425,18.12096,135.97,135.94,1.76]
[1763593427635,13.31925097,135.99,135.94,1.76]
[1763593427829,13.31925097,135.99,135.96,11.78332009]
[1763593427830,1.53593088,135.99,135.96,11.78332009]
[1763593428026,18.12096,135.98,135.97,1.76]
[1763593428227,1.53593088,135.99,135.97,1.76]
[1763593433281,1.53593088,135.99,135.96,1.76]
[1763593433282,12.48332009,135.98,135.96,1.76]
[1763593433550,11.78332009,135.97,135.96,1.76]
[1763593433764,12.48332009,135.98,135.96,1.76]
[1763593434128,12.41042784,135.99,135.96,1.76]
[1763593434350,13.11042784,135.99,135.96,1.76]
[1763593435033,0.7,135.98,135.96,1.76]
[1763593435251,12.41042784,135.99,135.96,1.76]
[1763593435451,0.7,135.98,135.96,1.76]
[1763593436048,12.41042784,135.99,135.96,1.76]
[1763593436237,13.11042784,135.99,135.96,1.76]
[1763593437767,12.41042784,135.99,135.96,1.76]
[1763593437945,13.11042784,135.99,135.96,1.76]
[1763593438641,12.41042784,135.99,135.96,1.76]
[1763593438848,0.7,135.98,135.96,1.76]
[1763593439171,13.11042784,135.99,135.96,1.76]
[1763593439464,1.53593088,135.99,135.97,0.72]
[1763593439865,1.53593088,135.99,135.97,11.59449696]
[1763593440067,1.53593088,135.99,135.98,10.87449696]
[1763593440273,1.53593088,135.99,135.98,0.72]
[1763593440451,1.53593088,135.99,135.98,1.76]
[1763593440845,13.11042784,135.99,135.93,0.72]
[1763593441046,28.99545696,135.97,135.94,1.76]
[1763593441570,29.69545696,135.97,135.94,1.76]
[1763593442172,18.12096,135.97,135.95,1.76]
[1763593442338,1.53593088,135.99,135.95,13.35449696]
[1763593442542,19.65689088,135.99,135.96,0.72]
[1763593444352,31.23138784,135.99,135.94,11.59449696]
[1763593444566,20.35689088,135.99,135.95,10.87449696]
[1763593444874,19.65689088,135.99,135.95,13.35449696]
[1763593445082,20.35689088,135.99,135.95,13.35449696]
[1763593446781,20.35689088,135.99,135.95,2.48]
[1763593447182,19.65689088,135.99,135.96,0.72]
[1763593447383,19.65689088,135.99,135.96,11.59449696]
[1763593447766,19.65689088,135.99,135.97,0.72]
[1763593448079,19.65689088,135.99,135.98,1.76]
[1763593450483,1.53593088,135.99,135.98,2.48]
[1763593450684,1.53593088,135.99,135.98,8.72361894]
[1763593451188,1.53593088,135.99,135.98,2.48]
[1763593451386,1.53593088,135.99,135.98,8.72361894]
[1763593452267,1.53593088,135.99,135.98,16.07764159]
[1763593452465,1.53593088,135.99,135.98,8.72361894]
[1763593453183,1.53593088,135.99,135.98,78.17764159]
[1763593454583,1.53593088,135.99,135.98,87.96646928]
[1763593454765,1.53593088,135.99,135.98,25.86646928]
[1763593455188,1.53593088,135.99,135.98,94.21008822]
[1763593455394,0.7,136.09,136.01,18.12096]
[1763593455573,6.94361894,136.11,136.06,6.24361894]
[1763593455889,18.12096,136.09,136.07,1.76]
[1763593456369,18.12096,136.09,136.08,1.76]
[1763593456370,18.82096,136.09,136.08,1.76]
[1763593456575,18.12096,136.09,136.08,1.76]
[1763593456771,6.94361894,136.09,136.05,0.72]
[1763593456969,6.94361894,136.09,136.06,1.76]
[1763593457171,18.82096,136.11,136.06,1.76]
[1763593457490,6.94361894,136.1,136.06,2.48]
[1763593457877,6.24361894,136.08,136.03,0.72]
[1763593458181,6.24361894,136.07,136.04,1.76]
[1763593458388,6.94361894,136.07,136.04,1.76]
[1763593458802,0.7,136.07,136.04,1.76]
[1763593459794,6.24361894,136.05,136.0,6.24361894]
[1763593459966,6.24361894,136.05,136.01,1.76]
[1763593460161,0.68,136.04,136.0,0.72]
[1763593460464,25.04457894,136.05,136.01,1.76]
[1763593460781,25.04457894,136.05,136.01,2.48]
[1763593462388,18.12096,136.05,136.01,1.76]
[1763593462688,25.04457894,136.08,136.03,6.24361894]
[1763593462892,0.68,136.07,136.04,1.76]
[1763593463890,6.24361894,136.06,136.01,6.24361894]
[1763593464089,24.36457894,136.05,136.02,1.76]
[1763593464470,25.04457894,136.05,136.02,1.76]
[1763593464681,18.12096,136.05,136.02,2.48]
[1763593465194,6.24361894,136.07,136.02,1.76]
[1763593465372,24.36457894,136.08,136.03,0.72]
[1763593465573,6.24361894,136.07,136.03,0.72]
[1763593465765,6.95361894,136.07,136.03,0.72]
[1763593465989,6.24361894,136.06,136.02,2.48]
[1763593467395,6.24361894,136.06,136.03,0.72]
[1763593467579,6.95361894,136.07,136.03,0.72]
[1763593469091,6.95361894,136.07,136.03,62.82]
[1763593469499,6.24361894,136.07,136.03,62.82]
[1763593469683,24.36457894,136.08,136.04,0.72]
[1763593469995,25.07457894,136.08,136.05,1.76]
[1763593470196,0.71,136.1,136.05,8.00361894]
[1763593470371,0.71,136.1,136.06,0.72]
[1763593470693,0.71,136.1,136.06,6.96361894]
[1763593471201,0.71,136.1,136.06,0.72]
[1763593471693,24.36457894,136.11,136.06,0.72]
[1763593471694,18.12096,136.11,136.07,0.72]
[1763593471880,18.12096,136.11,136.08,8.00361894]
[1763593472288,18.12096,136.11,136.09,0.72]
[1763593472490,0.1,136.12,136.09,0.72]
[1763593472795,18.22096,136.12,136.09,0.72]
[1763593472993,18.93096,136.12,136.08,8.00361894]
[1763593473196,0.81,136.12,136.08,8.72361894]
[1763593474095,0.81,136.12,136.08,2.48]
[1763593474399,0.81,136.12,136.08,8.72361894]
[1763593475186,0.1,136.12,136.09,0.72]
[1763593475492,0.71,136.19,136.11,6.24361894]
[1763593475672,6.24361894,136.22,136.16,6.24361894]
[1763593475870,0.71,136.2,136.17,1.76]
[1763593476092,6.95361894,136.2,136.16,1.76]
[1763593476397,0.71,136.2,136.17,1.76]
[1763593477196,0.71,136.2,136.16,0.72]
[1763593477368,0.71,136.2,136.17,1.76]
[1763593477574,6.95361894,136.2,136.14,0.72]
[1763593477875,6.24361894,136.19,136.15,1.76]
[1763593478075,6.95361894,136.19,136.15,1.76]
[1763593478377,9.78882769,136.16,136.02,1.99999999]
[1763593478703,18.12096,136.12,136.1,6.24361894]
[1763593479005,18.12096,136.15,136.11,8.00361894]
[1763593479303,18.83096,136.15,136.11,2.48]
[1763593479483,18.83096,136.15,136.11,8.72361894]
[1763593479681,18.12096,136.14,136.12,0.72]
[1763593480273,6.24361894,136.15,136.13,1.76]
[1763593480473,6.95361894,136.14,136.11,1.76]
[1763593480702,6.24361894,136.13,136.11,1.76]
[1763593480878,6.24361894,136.12,136.11,1.76]
[1763593481081,6.95361894,136.12,136.1,1.76]
[1763593481401,25.07457894,136.12,136.1,1.76]
[1763593481605,18.12096,136.12,136.1,1.76]
[1763593481812,18.12096,136.11,136.1,1.76]
[1763593482117,6.95361894,136.13,136.1,1.76]
[1763593482417,18.83096,136.13,136.1,1.76]
[1763593482618,18.12096,136.13,136.1,8.00361894]
[1763593482826,0.71,136.18,136.12,6.24361894]
[1763593483119,0.71,136.18,136.13,6.96361894]
[1763593483120,18.12096,136.15,136.13,6.96361894]
[1763593483418,18.12096,136.15,136.14,1.76]
[1763593484009,18.12096,136.15,136.12,6.96361894]
[1763593484206,18.12096,136.15,136.14,1.76]
[1763593485416,18.12096,136.15,136.13,0.72]
[1763593485417,25.07457894,136.15,136.13,1.76]
[1763593485621,6.95361894,136.14,136.13,1.76]
[1763593486200,6.95361894,136.14,136.09,0.72]
[1763593486403,6.24361894,136.14,136.1,1.76]
[1763593486616,6.95361894,136.14,136.1,1.76]
[1763593486816,6.24361894,136.11,136.06,18.12096]
[1763593487125,0.71,136.13,136.07,8.72361894]
[1763593487126,18.12096,136.12,136.07,8.72361894]
[1763593487314,18.12096,136.13,136.09,6.24361894]
[1763593487627,18.12096,136.12,136.1,0.72]
[1763593488004,25.07457894,136.12,136.09,1.76]
[1763593488909,18.12096,136.12,136.09,2.48]
[1763593490415,6.94361894,136.11,136.05,0.68]
[1763593490723,6.24361894,136.1,136.06,1.76]
[1763593490931,6.94361894,136.11,136.06,1.76]
[1763593491136,18.12096,136.13,136.08,6.24361894]
[1763593491422,17.62096,136.13,136.09,6.24361894]
[1763593491623,17.62096,136.13,136.1,1.76]
[1763593492012,17.62096,136.13,136.1,2.44]
[1763593494024,18.32096,136.13,136.1,1.76]
[1763593494230,23.86457894,136.13,136.1,1.76]
[1763593494806,6.24361894,136.12,136.1,1.76]
[1763593495005,6.94361894,136.12,136.1,1.76]
[1763593495908,0.7,136.12,136.1,1.76]
[1763593498207,18.12096,136.12,136.11,0.68]
[1763593498523,17.62096,136.13,136.11,0.68]
[1763593498524,18.12096,136.13,136.11,0.68]
[1763593498706,0.7,136.15,136.11,0.68]
[1763593498912,18.12096,136.12,136.11,2.44]
[1763593499313,18.12096,136.12,136.1,1.76]
[1763593499511,18.12096,136.12,136.1,2.44]
[1763593501026,17.62096,136.12,136.1,2.44]
[1763593501708,11.54882769,136.18,136.11,6.92361894]
[1763593501907,11.87352951,136.19,136.14,6.24361894]
[1763593502231,4.92991057,136.19,136.15,8.00361894]
[1763593502527,14.29363178,136.2,136.16,0.68]
[1763593502732,8.05001284,136.2,136.16,0.68]
[1763593503102,6.24361894,136.18,136.13,6.24361894]
[1763593503297,6.24361894,136.16,136.13,1.76]
[1763593503514,24.36457894,136.16,136.13,1.76]
[1763593503713,18.12096,136.16,136.13,1.76]
[1763593503918,18.82096,136.16,136.13,1.76]
[1763593504119,6.94361894,136.15,136.11,0.68]
[1763593504303,6.24361894,136.14,136.09,6.92361894]
[1763593504512,18.12096,136.13,136.11,1.76]
[1763593505230,18.12096,136.15,136.12,0.68]
[1763593505722,25.06457894,136.15,136.11,1.76]
[1763593505915,25.06457894,136.15,136.11,2.44]
[1763593506113,18.12096,136.16,136.12,0.68]
[1763593506304,0.7,136.2,136.14,6.24361894]
[1763593506510,6.24361894,136.19,136.14,6.24361894]
[1763593506731,6.24361894,136.19,136.15,0.68]
[1763593506917,18.12096,136.18,136.15,6.92361894]
[1763593507104,0.7,136.23,136.17,6.24361894]
[1763593507304,0.7,136.23,136.2,6.24361894]
[1763593507513,0.7,136.25,136.2,6.24361894]
[1763593507728,18.12096,136.24,136.21,2.44]
[1763593507933,18.12096,136.24,136.21,1.76]
[1763593508104,0.1,136.26,136.22,6.92361894]
[1763593508310,0.1,136.26,136.23,6.92361894]
[1763593508508,18.12096,136.25,136.22,6.92361894]
[1763593508707,0.1,136.26,136.23,6.24361894]
[1763593509325,0.1,136.26,136.23,6.92361894]
[1763593509520,6.34361894,136.26,136.21,8.00361894]
[1763593509721,7.04361894,136.26,136.22,1.76]
[1763593509912,7.04361894,136.26,136.22,2.44]
[1763593510338,7.04361894,136.26,136.17,17.13226631]
[1763593510339,0.1,136.26,136.23,2.44]
[1763593510538,0.1,136.26,136.24,6.24361894]
[1763593510721,0.1,136.26,136.25,6.24361894]
[1763593510923,0.1,136.26,136.25,0.68]
[1763593511109,0.1,136.26,136.23,0.68]
[1763593511314,0.1,136.26,136.24,2.44]
[1763593511738,0.1,136.26,136.24,1.76]
[1763593511934,0.1,136.26,136.23,10.82414231]
[1763593512218,0.1,136.26,136.24,1.76]
[1763593512536,0.1,136.26,136.19,17.13136127]
[1763593512537,0.7,136.25,136.15,62.1]
[1763593512747,10.82414231,136.22,136.17,11.50414231]
[1763593512933,28.94510231,136.21,136.17,11.50414231]
[1763593513236,28.94510231,136.21,136.18,1.76]
[1763593513439,10.82414231,136.19,136.14,2.44]
[1763593513653,10.82414231,136.18,136.14,2.44]
[1763593514324,10.82414231,136.19,136.15,0.68]
[1763593514529,28.94510231,136.21,136.16,10.82414231]
[1763593514837,18.12096,136.18,136.17,1.76]
[1763593517935,18.12096,136.21,136.17,2.44]
[1763593518136,18.12096,136.21,136.18,0.68]
[1763593518318,0.8,136.26,136.2,10.82414231]
[1763593518526,10.82414231,136.25,136.21,12.58414231]
[1763593518846,18.12096,136.22,136.21,12.58414231]
[1763593519342,11.52414231,136.25,136.21,12.58414231]
[1763593519545,10.92414231,136.26,136.22,10.82414231]
[1763593519850,0.8,136.26,136.22,10.82414231]
[1763593520035,18.12096,136.25,136.23,11.50414231]
[1763593520345,0.1,136.26,136.24,10.82414231]
[1763593520549,0.1,136.26,136.25,12.58414231]
[1763593520845,0.1,136.26,136.25,13.26414231]
[1763593521544,0.1,136.26,136.25,12.58414231]
[1763593522046,0.1,136.26,136.25,13.26414231]
[1763593522225,0.1,136.26,136.25,12.58414231]
[1763593522416,0.1,136.26,136.25,1.76]
[1763593523022,0.1,136.26,136.25,12.58414231]
[1763593524050,0.1,136.26,136.25,1.76]
[1763593524434,0.1,136.26,136.23,10.82414231]
[1763593524633,10.82414231,136.25,136.22,1.76]
[1763593524831,0.1,136.26,136.24,10.82414231]
[1763593525037,0.1,136.26,136.25,13.26414231]
[1763593525332,0.1,136.26,136.25,2.44]
[1763593525538,0.1,136.26,136.25,13.26414231]
[1763593526142,0.1,136.26,136.25,11.50414231]
[1763593526333,0.1,136.26,136.25,12.58414231]
[1763593526531,0.1,136.26,136.25,13.26414231]
[1763593528532,0.1,136.26,136.25,2.44]
[1763593528732,0.1,136.26,136.25,13.26414231]
[1763593529453,0.1,136.26,136.25,20.60359185]
[1763593529871,1.93593088,136.28,136.25,20.60359185]
[1763593529872,0.04593088,136.28,136.27,18.12096]
[1763593530073,0.04593088,136.28,136.27,49.55807231]
[1763593530364,0.04593088,136.28,136.27,38.73393]
[1763593530564,0.04593088,136.28,136.27,49.55807231]
[1763593530733,0.04593088,136.28,136.27,56.89644465]
[1763593531065,0.04593088,136.28,136.27,58.89644464]
[1763593531355,0.04593088,136.28,136.27,130.99644464]
[1763593531851,0.04593088,136.28,136.27,37.24816002]
[1763593532054,0.04593088,136.28,136.27,48.07230233]
[1763593532263,0.04593088,136.28,136.27,30.70510231]
[1763593532468,0.04593088,136.28,136.27,10.82414231]
[1763593532644,0.04593088,136.28,136.27,12.58414231]
[1763593534870,0.04593088,136.28,136.27,43.26932187]
[1763593535178,0.04593088,136.28,136.27,30.44517957]
[1763593535475,0.04593088,136.28,136.27,29.71134234]
[1763593535772,0.04593088,136.28,136.27,46.07230234]
[1763593535942,0.04593088,136.28,136.27,47.83230234]
[1763593536652,0.04593088,136.28,136.27,10.82414231]
[1763593536869,0.04593088,136.28,136.27,12.58414231]
[1763593537676,0.04593088,136.28,136.27,19.92251465]
[1763593538050,0.04593088,136.28,136.27,29.71134234]
[1763593538854,0.04593088,136.28,136.27,27.95134234]
[1763593539055,0.04593088,136.28,136.27,29.71134234]
[1763593540786,0.04593088,136.28,136.27,9.78882769]
[1763593540952,0.72593088,136.28,136.23,62.1]
[1763593541274,0.72593088,136.28,136.25,10.82414231]
[1763593541573,11.55007319,136.28,136.26,1.76]
[1763593541744,0.72593088,136.28,136.19,25.46353906]
[1763593541950,0.68,136.27,136.24,10.82414231]
[1763593542162,0.68,136.27,136.26,10.82414231]
[1763593542350,0.68,136.27,136.25,12.58414231]
[1763593543044,0.68,136.27,136.25,1.76]
[1763593543248,0.68,136.27,136.25,12.58414231]
[1763593543894,0.68,136.27,136.25,1.76]
[1763593544750,0.68,136.27,136.25,12.58414231]
[1763593545179,0.68,136.27,136.25,1.76]
[1763593545750,0.68,136.27,136.26,1.76]
[1763593545951,0.68,136.27,136.25,10.82414231]
[1763593546146,0.68,136.27,136.26,1.76]
[1763593548486,0.68,136.27,136.16,18.36038384]
[1763593548487,11.50414231,136.27,136.16,18.36038384]
[1763593548782,10.82414231,136.25,136.2,10.82414231]
[1763593548964,10.82414231,136.25,136.21,12.58414231]
[1763593549162,10.87007319,136.28,136.24,10.82414231]
[1763593549349,0.68,136.27,136.25,1.76]
[1763593552499,18.16689088,136.28,136.26,10.82414231]
[1763593552500,0.04593088,136.28,136.26,10.82414231]
[1763593552654,0.04593088,136.28,136.27,10.82414231]
[1763593552860,0.04593088,136.28,136.27,50.29190954]
[1763593553055,0.04593088,136.28,136.27,32.17094954]
[1763593553427,0.04593088,136.28,136.27,41.50932187]
[1763593553685,0.04593088,136.28,136.27,43.26932187]
[1763593555362,0.04593088,136.28,136.27,41.26932188]
[1763593555580,0.04593088,136.28,136.27,43.26932187]
[1763593555780,0.04593088,136.28,136.27,41.26932188]
[1763593556175,0.04593088,136.28,136.27,30.44517957]
[1763593556477,0.04593088,136.28,136.27,28.68517957]
[1763593556657,0.04593088,136.28,136.27,48.56613957]
[1763593558779,0.04593088,136.28,136.27,28.94510231]
[1763593558985,0.04593088,136.28,136.27,36.28347465]
[1763593559168,0.04593088,136.28,136.27,38.04347465]
[1763593559688,0.04593088,136.28,136.27,19.92251465]
[1763593559982,0.04593088,136.28,136.27,30.70510231]
[1763593560398,0.76593088,136.28,136.24,9.78882769]
[1763593560559,0.76593088,136.28,136.26,10.82414231]
[1763593561088,0.76593088,136.28,136.25,12.58414231]
[1763593561604,0.76593088,136.28,136.27,10.82414231]
[1763593561766,0.76593088,136.28,136.26,10.82414231]
[1763593561968,0.76593088,136.28,136.27,1.76]
[1763593562191,11.59007319,136.28,136.24,10.82414231]
[1763593562389,11.59007319,136.28,136.25,1.76]
[1763593562587,0.72,136.27,136.25,1.76]
[1763593562798,11.54414231,136.27,136.25,1.04]
[1763593563179,0.04593088,136.28,136.26,10.82414231]
[1763593563467,0.04593088,136.28,136.27,10.82414231]
[1763593563982,0.04593088,136.28,136.26,10.82414231]
[1763593564181,0.72,136.27,136.26,10.82414231]
[1763593564909,0.04593088,136.28,136.26,11.49414231]
[1763593565079,15.93386171,136.39,136.28,18.12096]
[1763593565291,4.91800474,136.4,136.37,10.82414231]
[1763593565577,6.24503402,136.42,136.39,10.82414231]
[1763593565578,0.72,136.41,136.39,10.82414231]
[1763593565798,0.72,136.41,136.4,10.82414231]
[1763593565980,0.72,136.41,136.39,10.82414231]
[1763593566176,0.1,136.42,136.4,10.82414231]
[1763593566490,0.1,136.42,136.41,13.25414231]
[1763593566684,0.1,136.42,136.41,11.49414231]
[1763593566877,0.1,136.42,136.41,12.58414231]
[1763593567273,0.1,136.42,136.41,13.25414231]
[1763593567494,0.1,136.42,136.41,10.82414231]
[1763593567675,0.1,136.42,136.41,12.58414231]
[1763593567882,0.1,136.42,136.41,10.82414231]
[1763593567883,0.82,136.42,136.41,10.82414231]
[1763593568191,0.82,136.42,136.41,1.76]
[1763593568370,0.82,136.42,136.36,10.82414231]
[1763593568692,10.82414231,136.41,136.31,0.67]
[1763593568898,18.12096,136.41,136.36,10.82414231]
[1763593569196,0.72,136.4,136.36,10.82414231]
[1763593569378,11.54414231,136.4,136.35,10.82414231]
[1763593569578,10.82414231,136.39,136.36,1.76]
[1763593569778,0.72,136.39,136.36,1.76]
[1763593570075,18.12096,136.41,136.36,12.58414231]
[1763593570076,0.72,136.38,136.36,12.58414231]
[1763593570276,0.72,136.38,136.37,10.82414231]
[1763593570498,0.72,136.38,136.36,12.58414231]
[1763593570712,0.72,136.38,136.36,1.76]
[1763593570998,0.72,136.38,136.37,1.76]
[1763593572719,0.72,136.38,136.29,18.12096]
[1763593572720,11.54414231,136.38,136.29,18.12096]
[1763593573009,6.93002077,136.38,136.33,6.21002077]
[1763593573187,0.72,136.37,136.34,7.97002077]
[1763593573704,0.72,136.37,136.34,1.76]
[1763593574204,6.21002077,136.36,136.31,6.21002077]
[1763593574385,6.21002077,136.36,136.32,1.76]
[1763593574720,6.21002077,136.33,136.25,17.62]
[1763593574911,18.12096,136.34,136.26,7.97002077]
[1763593575070,6.21002077,136.32,136.28,6.21002077]
[1763593575410,6.21002077,136.32,136.29,1.76]
[1763593575583,0.72,136.31,136.29,1.76]
[1763593576142,18.12096,136.32,136.3,6.21002077]
[1763593576738,0.72,136.35,136.31,6.21002077]
[1763593576903,0.72,136.36,136.33,6.21002077]
[1763593577103,0.72,136.35,136.33,6.21002077]
[1763593577846,0.82,136.42,136.34,7.61348123]
[1763593578012,0.82,136.42,136.36,6.21002077]
[1763593578013,0.72,136.4,136.36,6.21002077]
[1763593578341,0.72,136.4,136.37,7.97002077]
[1763593579326,0.72,136.4,136.38,6.21002077]
[1763593579514,0.72,136.4,136.37,7.97002077]
[1763593580403,0.72,136.4,136.38,6.21002077]
[1763593580604,0.1,136.42,136.39,6.21002077]
[1763593580827,6.31002077,136.42,136.37,1.76]
[1763593581029,6.31002077,136.42,136.38,7.97002077]
[1763593581330,0.1,136.42,136.41,6.21002077]
[1763593581714,0.1,136.42,136.41,6.88002077]
[1763593582331,0.1,136.42,136.41,6.21002077]
[1763593582526,0.1,136.42,136.41,7.97002077]
[1763593582527,0.82,136.42,136.41,7.97002077]
[1763593582820,0.1,136.42,136.41,7.97002077]
[1763593584109,0.1,136.42,136.41,1.76]
[1763593584440,0.1,136.42,136.41,7.97002077]
[1763593584733,0.1,136.42,136.41,6.21002077]
[1763593584905,0.82,136.42,136.35,18.12096]
[1763593585102,0.82,136.42,136.38,6.21002077]
[1763593585324,0.82,136.42,136.33,0.67]
[1763593585622,0.82,136.42,136.38,6.21002077]
[1763593585808,0.82,136.42,136.39,7.97002077]
[1763593586018,0.82,136.42,136.4,1.76]
[1763593587045,0.82,136.42,136.4,7.97002077]
[1763593587402,0.82,136.42,136.4,1.76]
[1763593587846,0.82,136.42,136.4,7.97002077]
[1763593588128,0.82,136.42,136.41,6.21002077]
[1763593588305,0.82,136.42,136.4,7.97002077]
[1763593588822,0.82,136.42,136.41,6.21002077]
[1763593589326,0.1,136.42,136.41,6.21002077]
[1763593589543,0.75,136.42,136.41,6.21002077]
[1763593589711,0.75,136.42,136.39,1.76]
[1763593589712,6.96002077,136.42,136.39,1.76]
[1763593590058,6.96002077,136.42,136.39,7.97002077]
[1763593590059,0.75,136.42,136.39,7.97002077]
[1763593590207,0.65,136.41,136.4,6.21002077]
[1763593590535,0.65,136.41,136.39,1.76]
[1763593590713,0.1,136.42,136.4,6.21002077]
[1763593591124,0.1,136.42,136.41,6.21002077]
[1763593591320,0.1,136.42,136.41,68.97002077]
[1763593591845,0.1,136.42,136.41,68.31002077]
[1763593592838,0.1,136.42,136.41,76.30086161]
[1763593593738,0.1,136.42,136.41,68.31002077]
[1763593594110,0.1,136.42,136.41,62.1]
[1763593594310,0.1,136.42,136.4,6.21002077]
[1763593594311,0.75,136.42,136.4,6.21002077]